fUSD/lending_fUSD_20260413
["ID","MTS","AMOUNT","RATE_DAILY","PERIOD"]
[420369075,1776041572010,-500.0,0.00038904,15]
[420369076,1776041572026,-1188.63,0.00038904,15]
[420369077,1776041572050,-643.8,0.00038904,15]
[420369078,1776041572070,-749.54,0.00038904,15]
[420369079,1776041572094,-500.0,0.00038904,15]
[420369080,1776041572114,-665.53,0.00038904,15]
[420369081,1776041572135,-3022.45,0.00038904,15]
[420369082,1776041572150,-730.53,0.00038904,15]
[420369083,1776041572167,-500.0,0.00038904,15]
[420369084,1776041572198,-500.0,0.00038904,15]
[420369085,1776041572213,-1125.09,0.00038904,15]
[420369086,1776041572236,-860.42,0.00038904,15]
[420369087,1776041572252,-500.0,0.00038904,15]
[420369088,1776041572270,-919.63,0.00038904,15]
[420369089,1776041572297,-517.61183233,0.00038904,15]
[420369090,1776041572313,-3724.43,0.00038904,15]
[420369091,1776041572332,-566.56,0.00038904,15]
[420369092,1776041572348,-1642.97,0.00038904,15]
[420369093,1776041572364,-2935.94,0.00038904,15]
[420369094,1776041572390,-749.44,0.00038904,15]
[420369095,1776041572411,-1409.24,0.00038904,15]
[420369096,1776041572440,-1838.08,0.00038904,15]
[420369097,1776041572472,-500.0,0.00038904,15]
[420369098,1776041572500,-2539.74,0.00038904,15]
[420369099,1776041572523,-500.0,0.00038904,15]
[420369100,1776041572551,-3600.95,0.00038904,15]
[420369101,1776041572580,-594.11,0.00038904,15]
[420369102,1776041572599,-1740.79,0.00038904,15]
[420369103,1776041572640,-991.93,0.00038904,15]
[420369104,1776041572662,-544.97,0.00038904,15]
[420369105,1776041572697,-500.0,0.00038904,15]
[420369106,1776041572715,-3727.63,0.00038904,15]
[420369107,1776041572732,-1800.61,0.00038904,15]
[420369108,1776041572749,-1550.44,0.00038904,15]
[420369109,1776041572767,-935.8,0.00038904,15]
[420369110,1776041572795,-1389.57,0.00038904,15]
[420369111,1776041572834,-2959.44,0.00038904,15]
[420369112,1776041572864,-1416.09,0.00038904,15]
[420369113,1776041572883,-500.0,0.00038904,15]
[420369114,1776041572908,-666.88,0.00038904,15]
[420369115,1776041572926,-500.0,0.00038904,15]
[420369116,1776041572961,-823.28,0.00038904,15]
[420369117,1776041572974,-3237.88,0.00038904,15]
[420369118,1776041572999,-500.0,0.00038904,15]
[420369119,1776041573014,-903.79,0.00038904,15]
[420369120,1776041573034,-814.41,0.00038904,15]
[420369121,1776041573054,-500.0,0.00038904,15]
[420369122,1776041573070,-1102.66,0.00038904,15]
[420369123,1776041573086,-500.0,0.00038904,15]
[420369124,1776041573101,-1158.52,0.00038904,15]
[420369125,1776041573115,-1843.26,0.00038904,15]
[420369126,1776041573131,-2877.49,0.00038904,15]
[420369127,1776041573146,-4854.15,0.00038904,15]
[420369128,1776041573162,-2664.28,0.00038904,15]
[420369129,1776041573178,-500.0,0.00038904,15]
[420369130,1776041573194,-972.23,0.00038904,15]
[420369131,1776041573213,-540.64363832,0.00038904,15]
[420369132,1776041573227,-500.0,0.00038904,15]
[420369133,1776041573250,-500.0,0.00038904,15]
[420369134,1776041573264,-500.0,0.00038904,15]
[420369135,1776041573285,-938.26,0.00038904,15]
[420369136,1776041573304,-1898.71,0.00038904,15]
[420369137,1776041573318,-2356.97,0.00038904,15]
[420369138,1776041573336,-500.0,0.00038904,15]
[420369139,1776041573360,-500.0,0.00038904,15]
[420369140,1776041573374,-15649.82,0.00038904,15]
[420369141,1776041573397,-500.0,0.00038904,15]
[420369142,1776041573414,-227.0089876,0.00038904,15]
[420369143,1776041573429,-2333.12,0.00038904,15]
[420369144,1776041573444,-500.0,0.00038904,15]
[420369145,1776041573463,-177.85280627,0.00038904,15]
[420369146,1776041573489,-6070.81,0.00038904,2]
[420369147,1776041573506,-1343.87,0.00038904,15]
[420369148,1776041573536,-500.0,0.00038904,15]
[420369149,1776041573552,-572.0,0.00038904,15]
[420369150,1776041573572,-500.0,0.00038904,15]
[420369151,1776041573591,-500.0,0.00038904,15]
[420369152,1776041573614,-726.46,0.00038904,15]
[420369153,1776041573656,-243.08989351,0.00038904,15]
[420369154,1776041573683,-1977.12,0.00038904,15]
[420369155,1776041573699,-1912.95,0.00038904,15]
[420369156,1776041573719,-53919.81,0.00038904,15]
[420369157,1776041573735,-3973.18,0.00038904,15]
[420369158,1776041573763,-2080.47,0.00038904,15]
[420369159,1776041573777,-1380.83,0.00038904,15]
[420369160,1776041573801,-1594.37,0.00038904,15]
[420369161,1776041573815,-500.0,0.00038904,15]
[420369162,1776041573831,-2286.82,0.00038904,15]
[420369163,1776041573851,-1215.29,0.00038904,15]
[420369164,1776041573866,-2777.29,0.00038904,15]
[420369165,1776041573884,-500.0,0.00038904,15]
[420369166,1776041573896,-500.0,0.00038904,15]
[420369167,1776041573910,-1653.98,0.00038904,15]
[420369168,1776041573927,-500.0,0.00038904,15]
[420369169,1776041573940,-1383.8,0.00038904,15]
[420369170,1776041573954,-2757.74,0.00038904,15]
[420369171,1776041573971,-5671.16,0.00038904,14]
[420369172,1776041573989,-1337.28,0.00038904,15]
[420369173,1776041574002,-500.0,0.00038904,15]
[420369174,1776041574015,-1001.04,0.00038904,15]
[420369175,1776041574032,-565.18,0.00038904,15]
[420369176,1776041574049,-564.66,0.00038904,15]
[420369177,1776041574063,-3432.21,0.00038904,15]
[420369178,1776041574081,-500.0,0.00038904,15]
[420369179,1776041574108,-1410.07,0.00038904,15]
[420369180,1776041574125,-500.0,0.00038904,15]
[420369181,1776041574138,-2188.75,0.00038904,14]
[420369182,1776041574173,-500.0,0.00038904,15]
[420369183,1776041574200,-500.0,0.00038904,15]
[420369184,1776041574233,-555.08,0.00038904,15]
[420369185,1776041574254,-760.05,0.00038904,15]
[420369186,1776041574283,-522.26,0.00038904,15]
[420369187,1776041574309,-1451.02,0.00038904,15]
[420369188,1776041574328,-684.15,0.00038904,15]
[420369189,1776041574362,-2164.58,0.00038904,15]
[420369190,1776041574393,-500.0,0.00038904,15]
[420369191,1776041574409,-2493.89,0.00038904,15]
[420369192,1776041574430,-500.0,0.00038904,15]
[420369193,1776041574470,-500.0,0.00038904,15]
[420369194,1776041574484,-1258.95,0.00038904,15]
[420369195,1776041574510,-597.94183468,0.00038904,15]
[420369196,1776041574522,-668.26,0.00038904,15]
[420369197,1776041574543,-841.2,0.00038904,15]
[420369198,1776041574554,-1402.85,0.00038904,15]
[420369199,1776041574573,-1966.15,0.00038904,15]
[420369200,1776041574587,-500.0,0.00038904,15]
[420369201,1776041574600,-2099.54,0.00038904,15]
[420369202,1776041574616,-500.0,0.00038904,15]
[420369203,1776041574634,-500.0,0.00038904,15]
[420369204,1776041574644,-500.0,0.00038904,15]
[420369205,1776041574683,-500.0,0.00038904,15]
[420369206,1776041574717,-298.99061081,0.00038904,15]
[420369207,1776041574753,-1499.38,0.00038904,15]
[420369208,1776041574763,-1156.86,0.00038904,15]
[420369209,1776041574796,-500.0,0.00038904,15]
[420369210,1776041574806,-500.0,0.00038904,15]
[420369211,1776041574815,-727.01,0.00038904,15]
[420369212,1776041574860,-500.0,0.00038904,15]
[420369213,1776041574875,-500.0,0.00038904,15]
[420369214,1776041574890,-500.0,0.00038904,15]
[420369215,1776041574919,-1088.75,0.00038904,10]
[420369216,1776041574946,-417.88044974,0.00038904,15]
[420369217,1776041574956,-2369.56,0.00038904,15]
[420369218,1776041574973,-500.0,0.00038904,15]
[420369219,1776041574987,-500.0,0.00038904,15]
[420369220,1776041574997,-2576.55,0.00038904,15]
[420369221,1776041575016,-710.49,0.00038904,15]
[420369222,1776041575026,-500.0,0.00038904,15]
[420369223,1776041575035,-500.0,0.00038904,15]
[420369224,1776041575046,-500.0,0.00038904,15]
[420369225,1776041575063,-551.01,0.00038904,15]
[420369226,1776041575073,-500.0,0.00038904,15]
[420369227,1776041575085,-530.19,0.00038904,15]
[420369228,1776041575103,-500.0,0.00038904,15]
[420369229,1776041575123,-500.0,0.00038904,15]
[420369230,1776041575146,-1050.9,0.00038904,2]
[420369231,1776041575159,-777.27,0.00038904,15]
[420369232,1776041575169,-1688.24,0.00038904,15]
[420369233,1776041575188,-500.0,0.00038904,15]
[420369234,1776041575206,-500.0,0.00038904,15]
[420369235,1776041575220,-1238.65,0.00038904,15]
[420369236,1776041575234,-838.3,0.00038904,15]
[420369237,1776041575260,-3632.99,0.00038904,15]
[420369238,1776041575271,-519.68,0.00038904,15]
[420369239,1776041575300,-500.0,0.00038904,15]
[420369240,1776041575311,-1404.43,0.00038904,15]
[420369241,1776041575331,-500.0,0.00038904,2]
[420369242,1776041575352,-1416.03,0.00038904,15]
[420369243,1776041575362,-500.0,0.00038904,15]
[420369244,1776041575371,-500.0,0.00038904,15]
[420369245,1776041575387,-500.0,0.00038904,15]
[420369246,1776041575399,-500.0,0.00038904,15]
[420369247,1776041575408,-500.0,0.00038904,15]
[420369248,1776041575420,-2663.72,0.00038904,15]
[420369249,1776041575435,-500.0,0.00038904,15]
[420369250,1776041575444,-500.0,0.00038904,15]
[420369251,1776041576136,-1941.75,0.00038904,15]
[420369252,1776041576166,-500.0,0.00038904,15]
[420369253,1776041576219,-500.0,0.00038904,15]
[420369254,1776041576247,-1140.07,0.00038904,15]
[420369255,1776041576274,-500.0,0.00038904,15]
[420369256,1776041576302,-2327.16,0.00038904,15]
[420369257,1776041576313,-489.60377691,0.00038904,15]
[420369258,1776041576326,-1143.2,0.00038904,15]
[420369259,1776041576342,-500.0,0.00038904,15]
[420369260,1776041576352,-691.76,0.00038904,15]
[420369261,1776041576361,-2867.96,0.00038904,15]
[420369262,1776041576380,-500.0,0.00038904,15]
[420369263,1776041576389,-502.71,0.00038904,15]
[420369264,1776041576398,-668.39,0.00038904,15]
[420369265,1776041576411,-500.0,0.00038904,2]
[420369266,1776041576435,-825.64,0.00038904,15]
[420369267,1776041576444,-350.48424511,0.00038904,15]
[420369268,1776041576454,-772.87,0.00038904,15]
[420369269,1776041576471,-500.0,0.00038904,15]
[420369270,1776041576482,-631.76686547,0.00038904,15]
[420369271,1776041576492,-2035.28,0.00038904,15]
[420369272,1776041576504,-2804.52,0.00038904,15]
[420369273,1776041576516,-500.0,0.00038904,15]
[420369274,1776041576527,-1528.0,0.00038904,30]
[420369275,1776041576536,-201.0,0.0003891,30]
[420369276,1776041576547,-676.46,0.0003892,63]
[420369277,1776041576568,-31105.76054249,0.00039,2]
[420369278,1776041576578,-2288.98351153,0.00039,120]
[420369279,1776041576587,-358.33394815,0.00039,60]
[420369280,1776041576608,-178.219999,0.00039,5]
[420369281,1776041576618,-9760.0,0.00039,2]
[420369282,1776041576627,-3585.10544099,0.00039,12]
[420369283,1776041576650,-500.0,0.00039,2]
[420369284,1776041576663,-500.0,0.00039,2]
[420369285,1776041576672,-500.0,0.00039,2]
[420369286,1776041576696,-500.0,0.00039,2]
[420369287,1776041576715,-500.0,0.00039,2]
[420369288,1776041576732,-500.0,0.00039,2]
[420369289,1776041576776,-500.0,0.00039,2]
[420369290,1776041576814,-500.0,0.00039,2]
[420369291,1776041576826,-500.0,0.00039,2]
[420369292,1776041576870,-500.0,0.00039,2]
[420369293,1776041576882,-500.0,0.00039,2]
[420369294,1776041576930,-500.0,0.00039,2]
[420369295,1776041576963,-500.0,0.00039,2]
[420369296,1776041576976,-500.0,0.00039,2]
[420369297,1776041577004,-500.0,0.00039,2]
[420369298,1776041577015,-500.0,0.00039,2]
[420369299,1776041577038,-500.0,0.00039,2]
[420369300,1776041577049,-500.0,0.00039,2]
[420369301,1776041577059,-500.0,0.00039,2]
[420369302,1776041577099,-500.0,0.00039,2]
[420369303,1776041577108,-500.0,0.00039,2]
[420369304,1776041577117,-500.0,0.00039,2]
[420369305,1776041577153,-500.0,0.00039,2]
[420369306,1776041577165,-500.0,0.00039,2]
[420369307,1776041577175,-500.0,0.00039,2]
[420369308,1776041577193,-500.0,0.00039,2]
[420369309,1776041577202,-500.0,0.00039,2]
[420369310,1776041577214,-500.0,0.00039,2]
[420369311,1776041577224,-500.0,0.00039,2]
[420369312,1776041577242,-500.0,0.00039,2]
[420369313,1776041577263,-500.0,0.00039,2]
[420369314,1776041577273,-500.0,0.00039,2]
[420369315,1776041577284,-500.0,0.00039,2]
[420369316,1776041577302,-500.0,0.00039,2]
[420369317,1776041577314,-500.0,0.00039,2]
[420369318,1776041577325,-500.0,0.00039,2]
[420369319,1776041577337,-500.0,0.00039,2]
[420369320,1776041577349,-500.0,0.00039,2]
[420369321,1776041577362,-500.0,0.00039,2]
[420369322,1776041577388,-500.0,0.00039,2]
[420369323,1776041577400,-500.0,0.00039,2]
[420369324,1776041577418,-500.0,0.00039,2]
[420369325,1776041577435,-500.0,0.00039,2]
[420369326,1776041577446,-500.0,0.00039,2]
[420369327,1776041577462,-500.0,0.00039,2]
[420369328,1776041577482,-500.0,0.00039,2]
[420369329,1776041577506,-500.0,0.00039,2]
[420369330,1776041577540,-500.0,0.00039,2]
[420369331,1776041577557,-595.0,0.00039,2]
[420369332,1776041577568,-2000.0,0.00039,3]
[420369333,1776041577586,-1049.80935194,0.00039,7]
[420369334,1776041577597,-175.1781,0.00039041,15]
[420369335,1776041577610,-1166.9673847,0.000391,120]
[420369336,1776041577629,-1665.42,0.0003913,2]
[420369337,1776041577641,-5828.66672179,0.00039177,15]
[420369338,1776041577651,-5828.66672178,0.00039177,15]
[420369339,1776041577682,-500.0,0.00039178,15]
[420369340,1776041577692,-500.0,0.00039178,15]
[420369341,1776041577702,-500.0,0.00039178,15]
[420369342,1776041577725,-500.0,0.00039178,15]
[420369343,1776041577750,-500.0,0.00039178,15]
[420369344,1776041577760,-1663.8,0.00039178,15]
[420369345,1776041577777,-179.06944233,0.00039178,15]
[420369346,1776041577793,-500.0,0.00039178,15]
[420369347,1776041577807,-500.0,0.00039178,15]
[420369348,1776041577838,-500.0,0.00039178,15]
[420369349,1776041577849,-500.0,0.00039178,15]
[420369350,1776041577858,-550.79,0.00039178,15]
[420369351,1776041577873,-500.0,0.00039178,15]
[420369352,1776041577890,-500.0,0.00039178,15]
[420369353,1776041577900,-500.0,0.00039178,15]
[420369354,1776041577911,-500.0,0.00039178,15]
[420369355,1776041577930,-525.59701192,0.00039178,15]
[420369356,1776041577939,-570.01373344,0.00039178,15]
[420369357,1776041577964,-500.0,0.00039178,15]
[420369358,1776041577977,-500.0,0.00039178,15]
[420369359,1776041577989,-697.6,0.00039178,15]
[420369360,1776041578004,-500.0,0.00039178,15]
[420369361,1776041578020,-500.0,0.00039178,15]
[420369362,1776041578030,-500.0,0.00039178,15]
[420369363,1776041578043,-500.0,0.00039178,15]
[420369364,1776041578056,-500.0,0.00039178,15]
[420369365,1776041578066,-500.0,0.00039178,15]
[420369366,1776041578086,-947.62,0.00039178,15]
[420369367,1776041578095,-500.0,0.00039178,15]
[420369368,1776041578117,-500.0,0.00039178,15]
[420369369,1776041578126,-785.07,0.00039178,15]
[420369370,1776041578146,-500.0,0.00039178,15]
[420369371,1776041578156,-1045.15,0.00039178,15]
[420369372,1776041578175,-500.0,0.00039178,15]
[420369373,1776041578200,-500.0,0.00039178,15]
[420369374,1776041578211,-500.0,0.00039178,15]
[420369375,1776041578221,-500.0,0.00039178,15]
[420369376,1776041578246,-268.14614026,0.00039178,15]
[420369377,1776041578262,-500.0,0.00039178,15]
[420369378,1776041578285,-1634.13,0.00039178,7]
[420369379,1776041578295,-500.0,0.00039178,15]
[420369380,1776041578307,-280.3789725,0.00039178,15]
[420369381,1776041578322,-500.0,0.00039178,7]
[420369382,1776041578345,-500.0,0.00039178,15]
[420369383,1776041578354,-500.0,0.00039178,15]
[420369384,1776041578369,-628.08,0.00039178,15]
[420369385,1776041578384,-710.03,0.00039178,15]
[420369386,1776041578393,-500.0,0.00039178,15]
[420369387,1776041578409,-849.78,0.00039178,15]
[420369388,1776041578420,-500.0,0.00039178,15]
[420369389,1776041578438,-500.0,0.00039178,15]
[420369390,1776041578455,-500.0,0.00039178,15]
[420369391,1776041578467,-1943.24,0.00039178,15]
[420369392,1776041578478,-500.0,0.00039178,15]
[420369393,1776041578496,-500.0,0.00039178,15]
[420369394,1776041578506,-500.0,0.00039178,15]
[420369395,1776041578519,-500.0,0.00039178,15]
[420369396,1776041578531,-1068.31,0.00039178,15]
[420369397,1776041578565,-601.67,0.00039178,15]
[420369398,1776041578577,-500.0,0.00039178,15]
[420369399,1776041578598,-500.0,0.00039178,15]
[420369400,1776041578611,-496.0263803,0.00039178,15]
[420369401,1776041578625,-763.96,0.00039178,15]
[420369402,1776041578642,-164.36665851,0.00039178,15]
[420369403,1776041578654,-500.0,0.00039178,15]
[420369404,1776041578671,-647.78,0.00039178,15]
[420369405,1776041578683,-500.0,0.00039178,15]
[420369406,1776041578698,-1381.7,0.00039178,15]
[420369407,1776041578726,-580.75926309,0.00039178,14]
[420369408,1776041578741,-500.0,0.00039178,15]
[420369409,1776041578751,-792.32,0.00039178,15]
[420369410,1776041578772,-527.39,0.00039178,15]
[420369411,1776041578784,-500.0,0.00039178,15]
[420369412,1776041578795,-500.0,0.00039178,15]
[420369413,1776041578810,-500.0,0.00039178,15]
[420369414,1776041578830,-409.54891856,0.00039178,15]
[420369415,1776041578840,-1152.6,0.00039178,15]
[420369416,1776041578850,-500.0,0.00039178,15]
[420369417,1776041578874,-500.0,0.00039178,15]
[420369418,1776041578888,-500.0,0.00039178,15]
[420369419,1776041578909,-500.0,0.00039178,15]
[420369420,1776041578921,-500.0,0.00039178,15]
[420369421,1776041578938,-969.29,0.00039178,15]
[420369422,1776041578971,-500.0,0.00039178,15]
[420369423,1776041579006,-500.0,0.00039178,15]
[420369424,1776041579031,-1217.57,0.00039178,15]
[420369425,1776041579040,-1867.56,0.00039178,15]
[420369426,1776041579054,-500.0,0.00039178,15]
[420369427,1776041579066,-621.51,0.00039178,15]
[420369428,1776041579076,-500.0,0.00039178,15]
[420369429,1776041579087,-582.94,0.00039178,15]
[420369430,1776041579103,-500.0,0.00039178,15]
[420369431,1776041579112,-500.0,0.00039178,15]
[420369432,1776041579121,-500.0,0.00039178,15]
[420369433,1776041579144,-1105.13,0.00039178,15]
[420369434,1776041579154,-772.66,0.00039178,15]
[420369435,1776041579178,-500.0,0.00039178,15]
[420369436,1776041579188,-500.0,0.00039178,15]
[420369437,1776041579201,-500.0,0.00039178,15]
[420369438,1776041579219,-500.0,0.00039178,15]
[420369439,1776041579230,-655.74,0.00039178,15]
[420369440,1776041579249,-500.0,0.00039178,15]
[420369441,1776041579259,-1081.95,0.00039178,15]
[420369442,1776041579282,-500.0,0.00039178,15]
[420369443,1776041579292,-500.0,0.00039178,15]
[420369444,1776041579307,-500.0,0.00039178,15]
[420369445,1776041579319,-500.0,0.00039178,15]
[420369446,1776041579329,-953.1,0.00039178,15]
[420369447,1776041579339,-500.0,0.00039178,15]
[420369448,1776041579353,-500.0,0.00039178,15]
[420369449,1776041579379,-627.16,0.00039178,15]
[420369450,1776041579388,-2804.38,0.00039178,15]
[420369451,1776041579403,-330.0401767,0.00039178,15]
[420369452,1776041579426,-496.43837482,0.00039178,15]
[420369453,1776041579435,-1274.7,0.00039178,15]
[420369454,1776041579445,-500.0,0.00039178,15]
[420369455,1776041579455,-500.0,0.00039178,15]
[420369456,1776041579466,-500.0,0.00039178,15]
[420369457,1776041579476,-2514.55,0.00039178,15]
[420369458,1776041579487,-719.78,0.00039178,15]
[420369459,1776041579497,-150.24299301,0.00039178,15]
[420369460,1776041579506,-859.84,0.00039178,2]
[420369461,1776041579517,-552.98,0.00039178,15]
[420369462,1776041579529,-914.83,0.00039178,15]
[420369463,1776041579541,-500.0,0.00039178,15]
[420369464,1776041579551,-500.0,0.00039178,15]
[420369465,1776041579567,-500.0,0.00039178,15]
[420369466,1776041579587,-710.68,0.00039178,15]
[420369467,1776041579597,-500.0,0.00039178,15]
[420369468,1776041579630,-500.0,0.00039178,15]
[420369469,1776041579694,-849.06,0.00039178,7]
[420369470,1776041579735,-1369.55,0.00039178,15]
[420369471,1776041579770,-500.0,0.00039178,15]
[420369472,1776041579782,-1237.88,0.00039178,15]
[420369473,1776041579793,-563.87,0.00039178,15]
[420369474,1776041579826,-500.0,0.00039178,15]
[420369475,1776041579836,-788.01,0.00039178,15]
[420369476,1776041579845,-500.0,0.00039178,15]
[420369477,1776041579871,-568.15,0.00039178,15]
[420369478,1776041579884,-500.0,0.00039178,15]
[420369479,1776041579893,-500.0,0.00039178,15]
[420369480,1776041579919,-500.0,0.00039178,15]
[420369481,1776041579929,-3366.71,0.00039178,15]
[420369482,1776041579938,-923.98,0.00039178,15]
[420369483,1776041579965,-2088.77,0.00039178,15]
[420369484,1776041579976,-549.15,0.00039178,15]
[420369485,1776041579986,-500.0,0.00039178,15]
[420369486,1776041579998,-500.0,0.00039178,15]
[420369487,1776041580015,-500.0,0.00039178,15]
[420369488,1776041580026,-500.0,0.00039178,15]
[420369489,1776041580040,-1268.03,0.00039178,15]
[420369490,1776041580057,-500.0,0.00039178,15]
[420369491,1776041580067,-500.0,0.00039178,15]
[420369492,1776041580091,-558.39,0.00039178,15]
[420369493,1776041580100,-500.0,0.00039178,15]
[420369494,1776041580109,-500.0,0.00039178,15]
[420369495,1776041580121,-1218.49,0.00039178,15]
[420369496,1776041580139,-4311.22,0.00039178,15]
[420369497,1776041580148,-788.69,0.00039178,15]
[420369498,1776041580161,-707.14,0.00039178,15]
[420369499,1776041580174,-500.0,0.00039178,15]
[420369500,1776041580185,-500.0,0.00039178,15]
[420369501,1776041580202,-654.55,0.00039178,15]
[420369502,1776041580211,-500.0,0.00039178,15]
[420369503,1776041580221,-1877.62,0.00039178,15]
[420369504,1776041580247,-500.0,0.00039178,15]
[420369505,1776041580257,-1985.43,0.00039178,15]
[420369506,1776041580278,-500.0,0.00039178,12]
[420369507,1776041580298,-1450.56,0.00039178,15]
[420369508,1776041580316,-1299.61,0.00039178,15]
[420369509,1776041580331,-500.0,0.00039178,15]
[420369510,1776041580341,-919.99,0.00039178,15]
[420369511,1776041580354,-500.0,0.00039178,15]
[420369512,1776041580371,-500.0,0.00039178,15]
[420369513,1776041580382,-500.0,0.00039178,15]
[420369514,1776041580394,-2075.21,0.00039178,15]
[420369515,1776041580415,-500.0,0.00039178,15]
[420369516,1776041580425,-500.0,0.00039178,15]
[420369517,1776041580434,-500.0,0.00039178,15]
[420369518,1776041580448,-534.23,0.00039178,15]
[420369519,1776041580463,-1289.28,0.00039178,15]
[420369520,1776041580473,-500.0,0.00039178,15]
[420369521,1776041580483,-500.0,0.00039178,15]
[420369522,1776041580508,-500.0,0.00039178,15]
[420369523,1776041580518,-500.0,0.00039178,15]
[420369524,1776041580532,-500.0,0.00039178,15]
[420369525,1776041580546,-1427.37,0.00039178,15]
[420369526,1776041580567,-1530.82,0.00039178,15]
[420369527,1776041580577,-500.0,0.00039178,15]
[420369528,1776041580586,-500.0,0.00039178,15]
[420369529,1776041580608,-2046.09,0.00039178,15]
[420369530,1776041580617,-500.0,0.00039178,15]
[420369531,1776041580627,-500.0,0.00039178,15]
[420369532,1776041580656,-2529.22,0.00039178,15]
[420369533,1776041580670,-745.28,0.00039178,15]
[420369534,1776041580686,-808.37,0.00039178,15]
[420369535,1776041580698,-2416.53,0.00039178,15]
[420369536,1776041580714,-906.56,0.00039178,15]
[420369537,1776041580727,-523.37,0.00039178,15]
[420369538,1776041580745,-525.35565468,0.00039178,15]
[420369539,1776041580758,-500.0,0.00039178,15]
[420369540,1776041580778,-504.19,0.00039178,15]
[420369541,1776041580792,-500.0,0.00039178,15]
[420369542,1776041581005,-500.0,0.00039178,15]
[420369543,1776041581041,-500.0,0.00039178,15]
[420369544,1776041581060,-500.0,0.00039178,15]
[420369545,1776041581073,-500.0,0.00039178,15]
[420369546,1776041581084,-500.0,0.00039178,15]
[420369547,1776041581095,-2898.73,0.00039178,15]
[420369548,1776041581104,-500.0,0.00039178,15]
[420369549,1776041581118,-2221.27,0.00039178,15]
[420369550,1776041581130,-500.0,0.00039178,15]
[420369551,1776041581139,-1447.93,0.00039178,15]
[420369552,1776041581151,-500.0,0.00039178,15]
[420369553,1776041581163,-819.82,0.00039178,15]
[420369554,1776041581174,-500.0,0.00039178,15]
[420369555,1776041581183,-739.29,0.00039178,15]
[420369556,1776041581198,-500.0,0.00039178,15]
[420369557,1776041581212,-1481.69,0.00039178,15]
[420369558,1776041581224,-500.0,0.00039178,15]
[420369559,1776041581243,-500.0,0.00039178,15]
[420369560,1776041581265,-500.0,0.00039178,15]
[420369561,1776041581278,-1386.95,0.00039178,15]
[420369562,1776041581296,-504.87,0.00039178,15]
[420369563,1776041581325,-500.0,0.00039178,15]
[420369564,1776041581353,-1307.69,0.00039178,15]
[420369565,1776041581366,-500.0,0.00039178,15]
[420369566,1776041581383,-571.11779495,0.00039178,15]
[420369567,1776041581406,-632.93,0.00039178,15]
[420369568,1776041581419,-500.0,0.00039178,15]
[420369569,1776041581446,-500.0,0.00039178,15]
[420369570,1776041581456,-2461.87,0.00039178,15]
[420369571,1776041581469,-500.0,0.00039178,14]
[420369572,1776041581499,-500.0,0.00039178,5]
[420369573,1776041581509,-644.51,0.00039178,15]
[420369574,1776041581518,-1333.0,0.00039178,15]